fUST/lending_fUST_20241123
["ID","MTS","AMOUNT","RATE_DAILY","PERIOD"]
[343107236,1732363759159,-500.0,0.00019178,2]
[343107237,1732363759184,-500.0,0.00019178,2]
[343107238,1732363759210,-500.0,0.00019178,2]
[343107239,1732363759238,-500.0,0.00019178,2]
[343107240,1732363759270,-575.18481116,0.00019178,2]
[343107241,1732363759297,-772.5,0.00019178,2]
[343107242,1732363759324,-500.0,0.00019178,2]
[343107243,1732363759350,-500.0,0.00019178,2]
[343107244,1732363759377,-500.0,0.00019178,2]
[343107245,1732363759404,-500.0,0.00019178,2]
[343107246,1732363759429,-500.0,0.00019178,2]
[343107247,1732363759456,-1910.73,0.00019178,2]
[343107248,1732363759482,-500.0,0.00019178,2]
[343107249,1732363759512,-1061.88,0.00019178,2]
[343107250,1732363759538,-500.0,0.00019178,2]
[343107251,1732363759567,-500.0,0.00019178,2]
[343107252,1732363759592,-600.27739734,0.00019178,2]
[343107253,1732363759618,-4477.26,0.00019178,2]
[343107254,1732363759644,-909.52,0.00019178,2]
[343107255,1732363759669,-500.0,0.00019178,2]
[343107256,1732363759695,-1682.46,0.00019178,2]
[343107257,1732363759721,-518.02117604,0.00019178,2]
[343107258,1732363759749,-500.0,0.00019178,2]
[343107259,1732363759774,-500.0,0.00019178,2]
[343107260,1732363759800,-500.0,0.00019178,2]
[343107261,1732363759827,-197.69876269,0.00019178,2]
[343107262,1732363759855,-261.20482586,0.00019178,2]
[343107263,1732363759881,-485.11412375,0.00019178,2]
[343107264,1732363759912,-820.13,0.00019178,2]
[343107265,1732363759938,-1013.63,0.00019178,2]
[343107266,1732363759964,-500.0,0.00019178,2]
[343107267,1732363759996,-500.0,0.00019178,2]
[343107268,1732363760023,-2690.84,0.00019178,2]
[343107269,1732363760048,-500.0,0.00019178,2]
[343107270,1732363760075,-2805.8,0.00019178,2]
[343107271,1732363760102,-500.0,0.00019178,2]
[343107272,1732363760128,-693.81,0.00019178,2]
[343107273,1732363760155,-500.0,0.00019178,2]
[343107274,1732363760181,-517.89589902,0.00019178,2]
[343107275,1732363760207,-1206.73,0.00019178,2]
[343107276,1732363760233,-500.0,0.00019178,2]
[343107277,1732363760371,-718.66,0.00019178,2]
[343107278,1732363760397,-150.3579982,0.00019178,2]
[343107279,1732363760422,-151.6681078,0.00019178,2]
[343107280,1732363760447,-500.0,0.00019178,2]
[343107281,1732363760473,-6072.35,0.00019178,2]
[343107282,1732363760501,-3779.33,0.00019178,2]
[343107283,1732363760526,-500.0,0.00019178,2]
[343107284,1732363760551,-151.0,0.00019178,2]
[343107285,1732363760580,-151.0,0.00019178,2]
[343107286,1732363760606,-151.0,0.00019178,2]
[343107287,1732363760632,-500.0,0.00019178,2]
[343107288,1732363760659,-151.0,0.00019178,2]
[343107289,1732363760685,-151.0,0.00019178,2]
[343107290,1732363760712,-151.0,0.00019178,2]
[343107291,1732363760745,-151.0,0.00019178,2]
[343107292,1732363760775,-500.0,0.00019178,2]
[343107293,1732363760801,-500.0,0.00019178,2]
[343107294,1732363760828,-500.0,0.00019178,2]
[343107295,1732363760855,-500.0,0.00019178,2]
[343107296,1732363760881,-500.0,0.00019178,2]
[343107297,1732363760907,-500.0,0.00019178,2]
[343107298,1732363760932,-500.0,0.00019178,2]
[343107299,1732363760959,-500.0,0.00019178,2]
[343107300,1732363760989,-500.0,0.00019178,2]
[343107301,1732363761016,-500.0,0.00019178,2]
[343107302,1732363761044,-250.0,0.00019178,2]
[343107303,1732363761074,-1172.77,0.00019178,2]
[343107304,1732363761101,-500.0,0.00019178,2]
[343107305,1732363761129,-500.0,0.00019178,2]
[343107306,1732363761155,-579.47037261,0.00019178,2]
[343107307,1732363761181,-500.0,0.00019178,2]
[343107308,1732363761207,-500.0,0.00019178,2]
[343107309,1732363761234,-320.24319469,0.00019178,2]
[343107310,1732363761261,-500.0,0.00019178,2]
[343107311,1732363761287,-1095.66,0.00019178,2]
[343107312,1732363761313,-500.0,0.00019178,2]
[343107313,1732363761339,-500.0,0.00019178,2]
[343107314,1732363761365,-500.0,0.00019178,2]
[343107315,1732363761390,-500.0,0.00019178,2]
[343107316,1732363761415,-500.0,0.00019178,2]
[343107317,1732363761440,-500.0,0.00019178,2]
[343107318,1732363761465,-500.0,0.00019178,2]
[343107319,1732363761491,-1092.97,0.00019178,2]
[343107320,1732363761517,-500.0,0.00019178,2]
[343107321,1732363761540,-752.35,0.00019178,2]
[343107322,1732363761565,-500.0,0.00019178,2]
[343107323,1732363761592,-500.0,0.00019178,2]
[343107324,1732363761621,-1905.13,0.00019178,2]
[343107325,1732363761648,-543.51166327,0.00019178,2]
[343107326,1732363761676,-500.0,0.00019178,2]
[343107327,1732363761703,-500.0,0.00019178,2]
[343107328,1732363761728,-938.66,0.00019178,2]
[343107329,1732363761757,-500.0,0.00019178,2]
[343107330,1732363761783,-500.0,0.00019178,2]
[343107331,1732363761809,-500.0,0.00019178,2]
[343107332,1732363761835,-151.0,0.00019178,2]
[343107333,1732363761861,-195.058778,0.00019178,2]
[343107334,1732363761886,-500.0,0.00019178,2]
[343107335,1732363761912,-500.0,0.00019178,2]
[343107336,1732363761938,-501.74238414,0.00019178,2]
[343107337,1732363761964,-500.0,0.00019178,2]
[343107338,1732363761993,-500.0,0.00019178,2]
[343107339,1732363762019,-732.4,0.00019178,2]
[343107340,1732363762047,-500.0,0.00019178,2]
[343107341,1732363762074,-500.0,0.00019178,2]
[343107342,1732363762103,-500.0,0.00019178,2]
[343107343,1732363762133,-500.0,0.00019178,2]
[343107344,1732363762161,-500.0,0.00019178,2]
[343107345,1732363762189,-500.0,0.00019178,2]
[343107346,1732363762314,-500.0,0.00019178,2]
[343107347,1732363762345,-500.0,0.00019178,2]
[343107348,1732363762375,-502.35774804,0.00019178,2]
[343107349,1732363762407,-500.0,0.00019178,2]
[343107350,1732363762434,-500.0,0.00019178,2]
[343107351,1732363762462,-500.0,0.00019178,2]
[343107352,1732363762492,-1065.5,0.00019178,2]
[343107353,1732363762519,-500.0,0.00019178,2]
[343107354,1732363762546,-500.0,0.00019178,2]
[343107355,1732363762571,-500.0,0.00019178,2]
[343107356,1732363762598,-500.0,0.00019178,2]
[343107357,1732363762623,-2062.38,0.00019178,2]
[343107358,1732363762649,-500.0,0.00019178,2]
[343107359,1732363762675,-500.0,0.00019178,2]
[343107360,1732363762700,-500.0,0.00019178,2]
[343107361,1732363762728,-419.305092,0.00019178,2]
[343107362,1732363762756,-500.0,0.00019178,2]
[343107363,1732363762783,-419.305092,0.00019178,2]
[343107364,1732363762809,-419.305092,0.00019178,2]
[343107365,1732363762835,-419.305092,0.00019178,2]
[343107366,1732363762862,-419.305092,0.00019178,2]
[343107367,1732363762890,-419.305092,0.00019178,2]
[343107368,1732363762917,-500.0,0.00019178,2]
[343107369,1732363762945,-419.305092,0.00019178,2]
[343107370,1732363762972,-624.65831616,0.00019178,2]
[343107371,1732363763017,-419.305092,0.00019178,2]
[343107372,1732363763048,-419.305092,0.00019178,2]
[343107373,1732363763077,-419.305092,0.00019178,2]
[343107374,1732363763105,-419.305092,0.00019178,2]
[343107375,1732363763133,-419.305092,0.00019178,2]
[343107376,1732363763167,-22802.25,0.00019178,2]
[343107377,1732363763195,-419.305092,0.00019178,2]
[343107378,1732363763224,-419.305092,0.00019178,2]
[343107379,1732363763253,-842.43,0.00019178,2]
[343107380,1732363763281,-419.305092,0.00019178,2]
[343107381,1732363763308,-578.45878998,0.00019178,2]
[343107382,1732363763335,-419.305092,0.00019178,2]
[343107383,1732363763362,-419.305092,0.00019178,2]
[343107384,1732363763388,-419.305092,0.00019178,2]
[343107385,1732363763417,-419.305092,0.00019178,2]
[343107386,1732363763444,-419.3051,0.00019178,2]
[343107387,1732363763471,-500.0,0.00019178,2]
[343107388,1732363763498,-500.0,0.00019178,2]
[343107389,1732363763526,-500.0,0.00019178,2]
[343107390,1732363763553,-2917.26,0.00019178,2]
[343107391,1732363763581,-12661.24,0.00019178,2]
[343107392,1732363763608,-500.0,0.00019178,2]
[343107393,1732363763635,-500.0,0.00019178,2]
[343107394,1732363763663,-151.0,0.00019178,2]
[343107395,1732363763691,-386.99476758,0.00019178,2]
[343107396,1732363763717,-151.250696,0.00019178,2]
[343107397,1732363763747,-245.35008529,0.00019178,2]
[343107398,1732363763773,-500.0,0.00019178,2]
[343107399,1732363763798,-1609.55,0.00019178,2]
[343107400,1732363763823,-1335.26,0.00019178,2]
[343107401,1732363763847,-510.35442732,0.00019178,2]
[343107402,1732363763872,-500.0,0.00019178,2]
[343107403,1732363763897,-6871.74,0.00019178,2]
[343107404,1732363763921,-1889.34,0.00019178,2]
[343107405,1732363763947,-307.8515372,0.00019178,2]
[343107406,1732363763973,-1142.95,0.00019178,2]
[343107407,1732363764003,-162.259667,0.00019178,2]
[343107408,1732363764030,-225.8187518,0.00019178,2]
[343107409,1732363764055,-168.291276,0.00019178,2]
[343107410,1732363764085,-201.2,0.00019275,2]
[343107411,1732363764111,-968.66311014,0.00019347,2]
[343107412,1732363764137,-231.0,0.00019421,2]
[343107413,1732363764246,-500.0,0.00019452,2]
[343107414,1732363764289,-500.0,0.00019452,2]
[343107415,1732363764316,-500.0,0.00019452,2]
[343107416,1732363764344,-500.0,0.00019452,2]
[343107417,1732363764372,-500.0,0.00019452,2]
[343107418,1732363764399,-500.0,0.00019452,2]
[343107419,1732363764426,-500.0,0.00019452,2]
[343107420,1732363764452,-500.0,0.00019452,2]
[343107421,1732363764479,-500.0,0.00019452,2]
[343107422,1732363764515,-500.0,0.00019452,2]
[343107423,1732363764541,-500.0,0.00019452,2]
[343107424,1732363764567,-500.0,0.00019452,2]
[343107425,1732363764591,-500.0,0.00019452,2]
[343107426,1732363764616,-500.0,0.00019452,2]
[343107427,1732363764641,-500.0,0.00019452,2]
[343107428,1732363764667,-500.0,0.00019452,2]
[343107429,1732363764693,-531.9008199,0.00019452,2]
[343107430,1732363764721,-500.0,0.00019452,2]
[343107431,1732363764750,-253.52345313,0.00019452,2]
[343107432,1732363764776,-507.4936004,0.00019452,2]
[343107433,1732363764807,-500.0,0.00019452,2]
[343107434,1732363764835,-500.0,0.00019452,2]
[343107435,1732363764863,-500.0,0.00019452,2]
[343107436,1732363764889,-500.0,0.00019452,2]
[343107437,1732363764915,-500.0,0.00019452,2]
[343107438,1732363764943,-500.0,0.00019452,2]
[343107439,1732363764969,-804.92,0.00019452,2]
[343107440,1732363764999,-500.0,0.00019452,2]
[343107441,1732363765025,-500.0,0.00019452,2]
[343107442,1732363765051,-500.0,0.00019452,2]
[343107443,1732363765080,-500.0,0.00019452,2]
[343107444,1732363765107,-500.0,0.00019452,2]
[343107445,1732363765134,-502.08085759,0.00019452,2]
[343107446,1732363765162,-500.0,0.00019452,2]
[343107447,1732363765188,-500.0,0.00019452,2]
[343107448,1732363765214,-500.0,0.00019452,2]
[343107449,1732363765240,-585.87857005,0.00019452,2]
[343107450,1732363765267,-528.48121204,0.00019452,2]
[343107451,1732363765294,-500.0,0.00019452,2]
[343107452,1732363765320,-1424.86,0.00019452,2]
[343107453,1732363765347,-500.0,0.00019452,2]
[343107454,1732363765372,-1952.93,0.00019452,2]
[343107455,1732363765396,-549.4,0.00019452,2]
[343107456,1732363765420,-500.0,0.00019452,2]
[343107457,1732363765445,-500.0,0.00019452,2]
[343107458,1732363765470,-500.0,0.00019452,2]
[343107459,1732363765493,-500.0,0.00019452,2]
[343107460,1732363765517,-500.0,0.00019452,2]
[343107461,1732363765543,-500.0,0.00019452,2]
[343107462,1732363765566,-500.0,0.00019452,2]
[343107463,1732363765590,-500.0,0.00019452,2]
[343107464,1732363765617,-500.0,0.00019452,2]
[343107465,1732363765646,-1177.73,0.00019452,2]
[343107466,1732363765670,-500.0,0.00019452,2]
[343107467,1732363765694,-500.0,0.00019452,2]
[343107468,1732363765720,-500.0,0.00019452,2]
[343107469,1732363765749,-500.0,0.00019452,2]
[343107470,1732363765775,-411.0668872,0.00019452,2]
[343107471,1732363765801,-585.05262564,0.00019452,2]
[343107472,1732363765826,-500.0,0.00019452,2]
[343107473,1732363765852,-1178.56,0.00019452,2]
[343107474,1732363765877,-500.0,0.00019452,2]
[343107475,1732363765903,-500.0,0.00019452,2]
[343107476,1732363765927,-500.0,0.00019452,2]
[343107477,1732363766068,-500.0,0.00019452,2]
[343107478,1732363766095,-500.0,0.00019452,2]
[343107479,1732363766122,-500.0,0.00019452,2]
[343107480,1732363766148,-500.0,0.00019452,2]
[343107481,1732363766175,-500.0,0.00019452,2]
[343107482,1732363766201,-500.0,0.00019452,2]
[343107483,1732363766227,-500.0,0.00019452,2]
[343107484,1732363766252,-500.0,0.00019452,2]
[343107485,1732363766276,-500.0,0.00019452,2]
[343107486,1732363766304,-500.0,0.00019452,2]
[343107487,1732363766331,-509.57107729,0.00019452,2]
[343107488,1732363766359,-276.82597875,0.00019452,2]
[343107489,1732363766388,-500.0,0.00019452,2]
[343107490,1732363766415,-500.0,0.00019452,2]
[343107491,1732363766442,-500.0,0.00019452,2]
[343107492,1732363766469,-500.0,0.00019452,2]
[343107493,1732363766495,-500.0,0.00019452,2]
[343107494,1732363766520,-816.47,0.00019452,2]
[343107495,1732363766547,-500.0,0.00019452,2]
[343107496,1732363766573,-500.0,0.00019452,2]
[343107497,1732363766598,-524.06932953,0.00019452,2]
[343107498,1732363766623,-500.0,0.00019452,2]
[343107499,1732363766648,-523.57024294,0.00019452,2]
[343107500,1732363766673,-500.0,0.00019452,2]
[343107501,1732363766698,-500.0,0.00019452,2]
[343107502,1732363766723,-500.0,0.00019452,2]
[343107503,1732363766748,-500.0,0.00019452,2]
[343107504,1732363766773,-500.0,0.00019452,2]
[343107505,1732363766799,-500.0,0.00019452,2]
[343107506,1732363766824,-521.25646828,0.00019452,2]
[343107507,1732363766849,-526.50428078,0.00019452,2]
[343107508,1732363766879,-500.0,0.00019452,2]
[343107509,1732363766926,-500.0,0.00019452,2]
[343107510,1732363766972,-500.0,0.00019452,2]
[343107511,1732363767023,-500.0,0.00019452,2]
[343107512,1732363767064,-500.0,0.00019452,2]
[343107513,1732363767111,-405.49226109,0.00019452,2]
[343107515,1732363767154,-500.0,0.00019452,2]
[343107516,1732363767204,-500.0,0.00019452,2]
[343107517,1732363767244,-407.13840208,0.00019452,2]
[343107518,1732363767281,-639.33117015,0.00019452,2]
[343107519,1732363767320,-151.20206666,0.00019452,2]
[343107520,1732363767362,-500.0,0.00019452,2]
[343107521,1732363767403,-500.0,0.00019452,2]
[343107522,1732363767443,-500.0,0.00019452,2]
[343107523,1732363767483,-543.81,0.00019452,2]
[343107524,1732363767524,-500.0,0.00019452,2]
[343107525,1732363767562,-500.0,0.00019452,2]
[343107526,1732363767604,-500.0,0.00019452,2]
[343107527,1732363767640,-500.0,0.00019452,2]
[343107528,1732363767679,-500.0,0.00019452,2]
[343107529,1732363767717,-500.0,0.00019452,2]
[343107530,1732363767757,-500.0,0.00019452,2]
[343107531,1732363767797,-500.0,0.00019452,2]
[343107532,1732363767834,-500.0,0.00019452,2]
[343107533,1732363767872,-500.0,0.00019452,2]
[343107534,1732363767907,-500.0,0.00019452,2]
[343107535,1732363767943,-500.0,0.00019452,2]
[343107536,1732363767980,-501.31499074,0.00019452,2]
[343107537,1732363768019,-566.2870654,0.00019452,2]
[343107538,1732363768058,-500.0,0.00019452,2]
[343107539,1732363768096,-574.66917539,0.00019452,2]
[343107540,1732363768292,-516.71099208,0.00019452,2]
[343107541,1732363768322,-500.0,0.00019452,2]
[343107542,1732363768348,-500.0,0.00019452,2]
[343107543,1732363768376,-500.0,0.00019452,2]
[343107544,1732363768402,-500.0,0.00019452,2]
[343107545,1732363768426,-500.0,0.00019452,2]
[343107546,1732363768450,-517.91928196,0.00019452,2]
[343107547,1732363768474,-500.0,0.00019452,2]
[343107548,1732363768503,-500.0,0.00019452,2]
[343107549,1732363768527,-414.43511972,0.00019452,2]
[343107550,1732363768551,-2279.09,0.00019452,2]
[343107551,1732363768574,-818.1,0.00019452,2]
[343107552,1732363768599,-500.0,0.00019452,2]
[343107553,1732363768623,-500.0,0.00019452,2]
[343107554,1732363768648,-177.5385931,0.00019452,2]
[343107555,1732363768673,-500.0,0.00019452,2]
[343107556,1732363768699,-500.0,0.00019452,2]
[343107557,1732363768724,-500.0,0.00019452,2]
[343107558,1732363768751,-1477.59,0.00019452,2]
[343107559,1732363768776,-500.0,0.00019452,2]
[343107560,1732363768801,-500.0,0.00019452,2]
[343107561,1732363768825,-500.0,0.00019452,2]
[343107562,1732363768850,-500.0,0.00019452,2]
[343107563,1732363768875,-500.0,0.00019452,2]
[343107564,1732363768901,-500.0,0.00019452,2]
[343107565,1732363768926,-3389.13,0.00019452,2]
[343107566,1732363768949,-500.0,0.00019452,2]
[343107567,1732363768980,-500.0,0.00019452,2]
[343107568,1732363769006,-500.0,0.00019452,2]
[343107569,1732363769033,-2266.58,0.00019452,2]
[343107570,1732363769059,-500.0,0.00019452,2]
[343107571,1732363769087,-500.0,0.00019452,2]
[343107572,1732363769112,-500.0,0.00019452,2]
[343107573,1732363769137,-500.0,0.00019452,2]
[343107574,1732363769162,-500.0,0.00019452,2]
[343107575,1732363769186,-486.76582079,0.00019452,2]
[343107576,1732363769212,-500.0,0.00019452,2]
[343107577,1732363769239,-500.0,0.00019452,2]
[343107578,1732363769265,-500.0,0.00019452,2]
[343107579,1732363769290,-212.2142796,0.00019452,2]
[343107580,1732363769314,-500.0,0.00019452,2]
[343107581,1732363769338,-500.0,0.00019452,2]
[343107582,1732363769362,-151.31907334,0.00019452,2]
[343107583,1732363769386,-500.0,0.00019452,2]
[343107584,1732363769410,-500.0,0.00019452,2]
[343107585,1732363769434,-1440.12,0.00019452,2]
[343107586,1732363769458,-500.0,0.00019452,2]
[343107587,1732363769483,-500.0,0.00019452,2]
[343107588,1732363769510,-500.0,0.00019452,2]
[343107589,1732363769534,-500.0,0.00019452,2]
[343107590,1732363769558,-1494.84,0.00019452,2]
[343107591,1732363769582,-500.0,0.00019452,2]
[343107592,1732363769606,-500.0,0.00019452,2]
[343107593,1732363769633,-500.0,0.00019452,2]
[343107594,1732363769659,-512.67520294,0.00019452,2]
[343107595,1732363769684,-500.0,0.00019452,2]
[343107596,1732363769712,-500.0,0.00019452,2]
[343107597,1732363769738,-545.68,0.00019452,2]
[343107598,1732363769766,-449.00390366,0.00019452,2]
[343107599,1732363769790,-500.0,0.00019452,2]
[343107600,1732363769816,-542.01949175,0.00019452,2]
[343107601,1732363769840,-500.0,0.00019452,2]
[343107602,1732363769864,-500.0,0.00019452,2]
[343107603,1732363769888,-500.0,0.00019452,2]
[343107604,1732363769913,-500.0,0.00019452,2]
[343107605,1732363769937,-500.0,0.00019452,2]
[343107606,1732363769961,-483.06085613,0.00019452,2]
[343107607,1732363769989,-500.0,0.00019452,2]
[343107608,1732363770016,-500.0,0.00019452,2]
[343107609,1732363770042,-500.0,0.00019452,2]
[343107610,1732363770069,-500.0,0.00019452,2]
[343107611,1732363770095,-500.0,0.00019452,2]
[343107612,1732363770226,-532.7415209,0.00019452,2]
[343107613,1732363770255,-500.0,0.00019452,2]
[343107614,1732363770281,-500.0,0.00019452,2]
[343107615,1732363770307,-500.0,0.00019452,2]
[343107616,1732363770333,-660.32,0.00019452,2]
[343107617,1732363770362,-500.0,0.00019452,2]
[343107618,1732363770386,-500.0,0.00019452,2]
[343107619,1732363770411,-500.0,0.00019452,2]
[343107620,1732363770434,-573.87,0.00019452,2]
[343107621,1732363770458,-500.0,0.00019452,2]
[343107622,1732363770481,-500.0,0.00019452,2]
[343107623,1732363770509,-500.0,0.00019452,2]
[343107624,1732363770533,-500.0,0.00019452,2]
[343107625,1732363770559,-500.0,0.00019452,2]
[343107626,1732363770584,-500.0,0.00019452,2]
[343107627,1732363770609,-608.48522912,0.00019452,2]
[343107628,1732363770635,-500.0,0.00019452,2]
[343107629,1732363770659,-500.0,0.00019452,2]
[343107630,1732363770685,-2025.79,0.00019452,2]
[343107631,1732363770709,-500.0,0.00019452,2]
[343107632,1732363770733,-526.89,0.00019452,2]
[343107633,1732363770759,-500.0,0.00019452,2]
[343107634,1732363770783,-500.0,0.00019452,2]
[343107635,1732363770806,-500.0,0.00019452,2]
[343107636,1732363770830,-500.0,0.00019452,2]
[343107637,1732363770854,-500.0,0.00019452,2]
[343107638,1732363770878,-500.0,0.00019452,2]
[343107639,1732363770903,-500.0,0.00019452,2]
[343107640,1732363770929,-500.0,0.00019452,2]
[343107641,1732363770952,-410.97293891,0.00019452,2]
[343107642,1732363770977,-500.0,0.00019452,2]
[343107643,1732363771004,-500.0,0.00019452,2]
[343107644,1732363771028,-605.73489021,0.00019452,2]
[343107645,1732363771054,-500.0,0.00019452,2]
[343107646,1732363771081,-648.17,0.00019452,2]
[343107647,1732363771105,-505.98505817,0.00019452,2]
[343107648,1732363771131,-500.0,0.00019452,2]
[343107649,1732363771157,-500.0,0.00019452,2]
[343107650,1732363771183,-500.0,0.00019452,2]
[343107651,1732363771209,-2792.79,0.00019452,2]
[343107652,1732363771235,-500.0,0.00019452,2]
[343107653,1732363771262,-595.94960403,0.00019452,2]
[343107654,1732363771288,-1186.81,0.00019452,2]
[343107655,1732363771312,-500.0,0.00019452,2]
[343107656,1732363771338,-665.0,0.00019452,2]
[343107657,1732363771362,-500.0,0.00019452,2]
[343107658,1732363771386,-500.0,0.00019452,2]
[343107659,1732363771411,-500.0,0.00019452,2]
[343107660,1732363771435,-500.0,0.00019452,2]
[343107661,1732363771459,-500.0,0.00019452,2]
[343107662,1732363771483,-925.73,0.00019452,2]
[343107663,1732363771512,-500.0,0.00019452,2]
[343107664,1732363771538,-500.0,0.00019452,2]
[343107665,1732363771563,-500.0,0.00019452,2]
[343107666,1732363771588,-500.0,0.00019452,2]
[343107667,1732363771612,-1500.44,0.00019452,2]
[343107668,1732363771636,-500.0,0.00019452,2]
[343107669,1732363771660,-500.0,0.00019452,2]
[343107670,1732363771686,-500.0,0.00019452,2]
[343107671,1732363771710,-500.0,0.00019452,2]
[343107672,1732363771733,-500.0,0.00019452,2]
[343107673,1732363771760,-500.0,0.00019452,2]
[343107674,1732363771784,-500.0,0.00019452,2]
[343107675,1732363771808,-500.0,0.00019452,2]
[343107676,1732363771831,-1213.35,0.00019452,2]
[343107677,1732363771855,-751.64,0.00019452,2]
[343107678,1732363771879,-507.5027271,0.00019452,2]
[343107679,1732363771906,-500.0,0.00019452,2]
[343107680,1732363771928,-505.57297795,0.00019452,2]
[343107681,1732363772053,-500.0,0.00019452,2]
[343107682,1732363772079,-500.0,0.00019452,2]
[343107683,1732363772105,-1969.72,0.00019452,2]
[343107684,1732363772131,-500.0,0.00019452,2]
[343107685,1732363772156,-664.91,0.00019452,2]
[343107686,1732363772182,-500.0,0.00019452,2]
[343107687,1732363772208,-500.0,0.00019452,2]
[343107688,1732363772232,-514.40687909,0.00019452,2]
[343107689,1732363772261,-500.0,0.00019452,2]
[343107690,1732363772286,-500.0,0.00019452,2]
[343107691,1732363772312,-506.09914436,0.00019452,2]
[343107692,1732363772338,-500.0,0.00019452,2]
[343107693,1732363772363,-500.0,0.00019452,2]
[343107694,1732363772388,-500.0,0.00019452,2]
[343107695,1732363772414,-197.77562733,0.00019452,2]
[343107696,1732363772441,-500.0,0.00019452,2]
[343107697,1732363772466,-500.0,0.00019452,2]
[343107698,1732363772495,-500.0,0.00019452,2]
[343107699,1732363772523,-500.0,0.00019452,2]
[343107700,1732363772551,-500.0,0.00019452,2]
[343107701,1732363772577,-500.0,0.00019452,2]
[343107702,1732363772602,-500.0,0.00019452,2]
[343107703,1732363772627,-500.0,0.00019452,2]
[343107704,1732363772652,-502.67770509,0.00019452,2]
[343107705,1732363772676,-470.04522659,0.00019452,2]
[343107706,1732363772702,-500.0,0.00019452,2]
[343107707,1732363772727,-500.0,0.00019452,2]
[343107708,1732363772755,-500.0,0.00019452,2]
[343107709,1732363772780,-500.0,0.00019452,2]
[343107710,1732363772806,-500.0,0.00019452,2]
[343107711,1732363772830,-584.18283213,0.00019452,2]
[343107712,1732363772855,-500.0,0.00019452,2]
[343107713,1732363772879,-500.0,0.00019452,2]
[343107714,1732363772903,-500.0,0.00019452,2]
[343107715,1732363772929,-500.0,0.00019452,2]
[343107716,1732363772955,-500.0,0.00019452,2]
[343107717,1732363772983,-500.0,0.00019452,2]
[343107718,1732363773013,-500.0,0.00019452,2]
[343107719,1732363773041,-2048.21,0.00019452,2]
[343107720,1732363773072,-788.01,0.00019452,2]
[343107721,1732363773099,-555.03653311,0.00019452,2]
[343107722,1732363773128,-500.0,0.00019452,2]
[343107723,1732363773157,-500.0,0.00019452,2]
[343107724,1732363773186,-500.0,0.00019452,2]
[343107725,1732363773213,-1124.43,0.00019452,2]
[343107726,1732363773242,-500.0,0.00019452,2]
[343107727,1732363773272,-500.0,0.00019452,2]
[343107728,1732363773307,-500.0,0.00019452,2]
[343107729,1732363773338,-306.58,0.00019452,2]
[343107730,1732363773368,-500.0,0.00019452,2]
[343107731,1732363773402,-500.0,0.00019452,2]
[343107732,1732363773430,-548.25344333,0.00019452,2]
[343107733,1732363773459,-1339.0,0.00019452,2]
[343107734,1732363773488,-500.0,0.00019452,2]
[343107735,1732363773519,-500.0,0.00019452,2]
[343107736,1732363773546,-522.05026549,0.00019452,2]